Cogmind - Beta 17 @@@ ROGUE MODE // 2026.06.26 @ 14:24:25 Player: kareds Result: Destroyed by H-77 Assassin with Coil Gun Performance ------------- Evolutions (6) 3000 Regions Visited (15) 3000 Robots Destroyed (88) 440 Value Destroyed (2873) 2873 Prototype IDs (21) 420 Alien Tech Used (2) 400 Bonus (438) 438 TOTAL SCORE: 10571 Bonus ------- High Alert Combat Kills 138 Met Zhirov 300 Cogmind --------- Core Integrity 0/1150 Matter 180/300 Energy 273/315 System Corruption 40% Temperature Cool (0) Movement Walking (120) Location -4/Extension Parts ------- > --- POWER (1) -------- Neutrino Core > --- PROPULSION (5) --- Carbon-fiber Leg Flexi-carbon Leg Nuclear Pulse Array > --- UTILITY (10) ----- Advanced Sensor Array Kinecellerator Shock Absorption System Improved Shield Generator Advanced Hacking Suite Improved System Guard Mini Drone Bay (1/3) > --- WEAPON (3) ------- (None) > --- INVENTORY (5) ---- (None) Peak State ------------ > --- POWER ------------ Improved Deuterium Engine > --- PROPULSION ------- Armored Leg Advanced Myomer Leg Advanced Myomer Leg Advanced Myomer Leg > --- UTILITY ---------- Large Storage Unit Advanced Sensor Array Advanced Signal Interpreter Advanced Terrain Scanner Advanced Terrain Scan Processor Core Analyzer Matter Filter Improved Reaction Control System Hardened Heavy Armor Plating > --- WEAPON ----------- Matter Neutralizer Advanced Assault Cannon Plasma Lance > --- INVENTORY -------- Carbon-fiber Leg Carbon-fiber Leg Nuclear Pulse Array Nuclear Pulse Array Nuclear Pulse Array Advanced Power Amplifier Large Matter Pod Kinecellerator Improved Corruption Screen Long-range Tractor Beam Transdimensional Reconstructor Thermic Laser [Rating: 101] Favorites ----------- Power Light Fission Core Engine Improved Deuterium Engine Power Core Light Fission Core Propulsion Carbon-fiber Leg Treads Light Treads Leg Carbon-fiber Leg Hover Unit Antigrav System Flight Unit Nuclear Pulse Array Utility Large Storage Unit Device Seismic Detector Storage Large Storage Unit Processor Core Analyzer Hackware Advanced Hacking Suite Protection Hardened Medium Armor Plating Weapon Advanced Assault Cannon Energy Gun Beam Rifle Energy Cannon Particle Cannon Ballistic Gun Improved Assault Rifle Ballistic Cannon Advanced Assault Cannon Launcher Heavy Missile Launcher Impact Weapon Mace Slashing Weapon Chainsword Piercing Weapon Plasma Lance Build | -11 -10 -9 -9 -9 -8 -8 -7 -6 -5 -5 -5 -5 -4 -4 -4 ------- Run | Yrd Mat Mat Min Exi Min Mat Fac Fac Fac Upp Upp Zhi Pro Fac Ext Slots Evolved 12 | . . 2 . . . 2 2 2 2 . . . . 2 . Power . | . . . . . . . . . . . . . . . . Propulsion 3 | . . 1 . . . . 1 . 1 . . . . . . Utility 8 | . . 1 . . . 2 1 2 1 . . . . 1 . Weapon 1 | . . . . . . . . . . . . . . 1 . Parts Attached 104 | 7 2 23 . . 1 9 16 9 2 . . 4 3 22 6 Power 11 | 1 1 2 . . . . 3 1 . . . . . 2 1 Engine 5 | 1 1 . . . . . 2 . . . . . . 1 . Core 6 | . . 2 . . . . 1 1 . . . . . 1 1 Reactor . | . . . . . . . . . . . . . . . . Propulsion 28 | 2 . 8 . . 1 3 4 1 . . . 3 . 5 1 Treads 6 | 2 . 4 . . . . . . . . . . . . . Leg 18 | . . 4 . . 1 3 4 1 . . . 3 . 1 1 Wheel . | . . . . . . . . . . . . . . . . Hover 1 | . . . . . . . . . . . . . . 1 . Flight 3 | . . . . . . . . . . . . . . 3 . Utility 40 | 2 . 2 . . . 5 7 7 1 . . 1 2 9 4 Device 18 | 1 . 2 . . . . 4 3 . . . . . 4 4 Storage 3 | 1 . . . . . 1 . . 1 . . . . . . Processor 9 | . . . . . . 2 . 3 . . . . 1 3 . Hackware 2 | . . . . . . 1 . . . . . . . 1 . Protection 8 | . . . . . . 1 3 1 . . . 1 1 1 . Artifact . | . . . . . . . . . . . . . . . . Weapon 25 | 2 1 11 . . . 1 2 . 1 . . . 1 6 . Energy Gun 6 | . . 3 . . . . . . . . . . . 3 . Energy Cannon 4 | . 1 2 . . . . . . . . . . . 1 . Ballistic Gun 6 | 2 . 4 . . . . . . . . . . . . . Ballistic Cannon 4 | . . . . . . 1 2 . . . . . . 1 . Launcher 2 | . . 1 . . . . . . 1 . . . . . . Special Weapon . | . . . . . . . . . . . . . . . . Impact Weapon 1 | . . 1 . . . . . . . . . . . . . Slashing Weapon 1 | . . . . . . . . . . . . . 1 . . Piercing Weapon 1 | . . . . . . . . . . . . . . 1 . Special Melee Weapon . | . . . . . . . . . . . . . . . . Unidentified Prototypes 5 | . . 1 . . . . . . . . . 3 . 1 . Corrupted Parts 2 | . . . . . . . . . . . . . . . 2 System Corruption 20 | . . . . . . . . . . . . . . . 20 Parts Lost 38 | . . 2 . . 1 . . . 1 . . . 1 32 1 Power 2 | . . . . . . . . . . . . . . 2 . Propulsion 13 | . . 1 . . 1 . . . 1 . . . . 9 1 Utility 14 | . . . . . . . . . . . . . . 14 . Weapon 9 | . . 1 . . . . . . . . . . 1 7 . Highest Loss Streak 14 | . . 1 . . 1 . . . 1 . . . 1 14 1 To Critical Strikes 1 | . . 1 . . . . . . . . . . . . . Average Backups 10 | 2 5 7 8 8 8 6 12 11 13 14 14 14 14 10 . Power . | . 1 . . . . . . 1 1 1 1 1 1 . . Propulsion 2 | 1 2 1 1 1 1 1 2 2 1 1 1 1 4 4 . Utility 4 | . 1 2 4 4 4 2 5 6 7 9 9 8 6 4 . Weapon 2 | . . 2 3 3 3 1 3 2 3 3 3 3 2 . . Tool/Special . | . . . . . . . . . . . . . . . . Unused Backups 16 | . . 3 . . . 4 5 2 . . . 1 . 1 . Power 1 | . . 1 . . . . . . . . . . . . . Propulsion 2 | . . . . . . 1 1 . . . . . . . . Utility 5 | . . . . . . 1 2 . . . . 1 . 1 . Weapon 8 | . . 2 . . . 2 2 2 . . . . . . . Tool/Special . | . . . . . . . . . . . . . . . . Average Slot Usage (%) 93 | . 100 99 100 100 99 93 99 99 96 100 100 99 94 70 47 Engine 1 | . 14 1 . . . . 1 2 . . . . . 1 . Core 5 | . . 9 11 11 11 9 5 3 5 5 5 5 5 . 4 Treads 6 | . 28 21 22 22 19 1 . . . . . . . . . Leg 21 | . . 10 11 11 12 25 30 26 26 29 29 29 29 18 9 Device 15 | . 14 21 22 22 22 12 14 16 14 11 11 10 11 9 17 Storage 6 | . 14 11 11 11 11 3 6 6 5 5 5 5 5 4 . Processor 13 | . . . . . . 10 15 23 23 23 23 23 23 16 5 Protection 4 | . . . . . . 5 7 6 8 11 11 11 5 2 . Energy Cannon 2 | . 10 12 . . . . . . . . . . . . . Ballistic Gun 4 | . 17 3 22 22 22 17 2 . . . . . . . . Ballistic Cannon 6 | . . . . . . . 12 13 9 11 11 11 8 3 . Peak Build Rating 101 | 7 7 19 19 19 21 34 48 62 69 69 69 84 87 101 62 Average Rating 46 | 5 7 14 19 19 19 31 44 56 66 69 69 75 85 76 55 On Entrance 40 | . 7 7 19 19 19 21 34 48 62 69 69 69 84 87 32 Avg Prop Armor Cover (%) 7 | . . 6 5 5 5 9 . . . . . . . 10 8 Naked Turns . | . . . . . . . . . . . . . . . . Heaviest Build 76 | 13 14 22 20 20 20 37 66 67 53 53 53 53 62 76 24 Greatest Support 124 | 40 40 60 40 40 40 45 66 67 82 82 82 124 124 124 35 Greatest Overweight (x) 1 | . . 1 . . . . 1 1 . . . . . 1 . Average Overweight (x) . | . . . . . . . . . . . . . . . . Largest Inventory Capacity 15 | 8 8 8 8 8 8 15 15 15 15 15 15 15 15 15 5 Average Capacity 12 | 6 8 8 8 8 8 8 14 15 15 15 15 15 15 14 5 Most Carried 15 | 3 7 8 8 8 8 9 15 15 14 14 14 15 15 15 2 Average Carried 10 | 2 5 7 8 8 8 5 12 11 13 14 14 14 14 12 . Final Capacity 15 | 8 8 8 8 8 8 5 15 15 15 15 15 15 15 5 5 Final Carried 15 | 3 7 8 8 8 8 5 15 15 14 14 14 15 15 2 . Class Distribution -------------------- 63% | Mutant 26% | Skirmisher 4% | Assassin 4% | Scavenger-Mutant Dominant Class ---------------- Mutant | -10/Materials Mutant | -9/Materials Mutant | -9/Mines Mutant | -9/Exiles Mutant | -8/Mines Mutant | -8/Materials Mutant | -7/Factory Skirmisher | -6/Factory Skirmisher | -5/Factory Skirmisher | -5/Upper Caves Skirmisher | -5/Upper Caves Skirmisher | -5/Zhirov Skirmisher | -4/Proximity Caves Mutant | -4/Factory Mutant | -4/Extension Resources | -11 -10 -9 -9 -9 -8 -8 -7 -6 -5 -5 -5 -5 -4 -4 -4 ----------- Run | Yrd Mat Mat Min Exi Min Mat Fac Fac Fac Upp Upp Zhi Pro Fac Ext Matter Collected 2196 | 221 96 297 . . 60 15 378 80 215 186 12 . 256 305 75 Remotely 335 | . . . . . . . 74 . . . . . . 261 . Salvage Created 2517 | 13 213 780 . . 60 159 469 105 95 49 62 . 119 393 . Parts 157 | 3 19 59 . . 1 9 24 7 6 1 1 . 13 14 . Haulers Intercepted 1 | . . . . . . . 1 . . . . . . . . Recyclers Shooed 2 | . . . . . . . 1 . . . . . . 1 . Parts Field Recycled 27 | . . . . . . . 20 7 . . . . . . . Retrieved Matter 581 | . . . . . . . 463 118 . . . . . . . Parts Self-Destructed 12 | . . . . . . . . . . 1 1 . 10 . . Prevented . | . . . . . . . . . . . . . . . . Parts Restored . | . . . . . . . . . . . . . . . . Kills | -11 -10 -9 -9 -9 -8 -8 -7 -6 -5 -5 -5 -5 -4 -4 -4 ------- Run | Yrd Mat Mat Min Exi Min Mat Fac Fac Fac Upp Upp Zhi Pro Fac Ext Combat Hostiles Destroyed 70 | . 6 21 . . 1 3 6 4 6 1 1 . 12 9 . Melee 3 | . . . . . . . . . . . . . . 3 . Guns 16 | . 5 5 . . 1 3 1 . . . . . . 1 . Cannons 32 | . 1 11 . . . . 5 4 2 1 1 . 4 3 . AOE 18 | . . 4 . . . . . . 4 . . . 8 2 . Classes Destroyed 14 | 1 4 3 . . 1 . 3 . . . . . 1 1 . Worker 1 | . . 1 . . . . . . . . . . . . . Builder 2 | . 1 1 . . . . . . . . . . . . . Tunneler 3 | 1 . . . . . . 2 . . . . . . . . Hauler 1 | . . . . . . . 1 . . . . . . . . Recycler 2 | . . . . . . . 2 . . . . . . . . Operator 3 | . . 2 . . . . 1 . . . . . . . . Drone 2 | . . . . . . . . . . . . . 2 . . Watcher 6 | . 1 1 . . . 1 2 1 . . . . . . . Swarmer 28 | . 3 10 . . . 1 . . 4 . . . 9 1 . Grunt 16 | . 3 3 . . . . 2 . 2 . 1 . . 5 . Duelist 1 | . . . . . . . . . . . . . . 1 . Sentry 14 | . . 8 . . . 2 2 1 . 1 . . . . . Hunter 1 | . . . . . 1 . . . . . . . . . . Programmer 8 | . . . . . . . 2 3 . . . . 1 2 . Best Kill Streak 6 | 1 3 6 . . 1 2 3 1 5 1 1 . 6 3 . Combat Bots Only 6 | . 3 5 . . 1 2 2 1 5 1 1 . 6 3 . Max Kills in Single Turn 3 | 1 2 3 . . 1 1 1 1 2 1 1 . 3 2 . Gunslinging . | . . . . . . . . . . . . . . . . Exploded 3 | . . 2 . . . . . . 2 . . . 3 2 . Melee 1 | . . . . . . . . . . . . . . 1 . Uniques/NPCs Destroyed . | . . . . . . . . . . . . . . . . Combat | -11 -10 -9 -9 -9 -8 -8 -7 -6 -5 -5 -5 -5 -4 -4 -4 -------- Run | Yrd Mat Mat Min Exi Min Mat Fac Fac Fac Upp Upp Zhi Pro Fac Ext Hostile Shots Fired 667 | . 21 84 . . 8 21 59 94 19 5 2 . 35 300 19 Missed 232 | . 5 24 . . . 6 26 46 2 1 . . 7 104 11 Hits 435 | . 16 60 . . 8 15 33 48 17 4 2 . 28 196 8 Melee 25 | . . . . . . . . . . . . . . 25 . Projectile 410 | . 16 60 . . 8 15 33 48 17 4 2 . 28 171 8 AOE 1 | . . . . . . . . . . . . . . 1 . Critical Strikes 20 | . . 4 . . . 1 . . 1 . . . . 14 . Part Disruptions 1 | . . . . . . . . . . . . . . 1 . Damage Taken 7785 | . 150 783 . . 134 192 364 496 389 93 38 . 569 4350 227 Core 1514 | . 17 109 . . 14 29 20 42 74 19 19 . 20 1059 92 Absorbed by Shields 6 | . . . . . . . . . . . . . . . 6 Redirected to Shielding 106 | . . . . . . . . . . . . . . 106 . Regen/Repaired (Parts) 159 | . . . . . . . . . 136 . . . . 23 . Core Remaining (%) 90 | 100 93 . . . 69 94 97 95 . . . . 86 . . Volleys Fired 229 | 1 15 56 . . 4 12 37 17 15 2 1 . 29 40 . Largest 2 | 2 2 2 . . 2 2 2 2 2 2 2 . 2 2 . Hottest 145 | 40 80 136 . . 46 46 80 80 80 80 80 . 80 145 . Shots Fired 380 | 2 30 108 . . 8 24 61 36 20 4 2 . 33 52 . Gun 127 | 2 24 27 . . 8 24 19 . . . . . . 23 . Cannon 244 | . 6 79 . . . . 42 36 18 4 2 . 29 28 . Launcher 9 | . . 2 . . . . . . 2 . . . 4 1 . Special . | . . . . . . . . . . . . . . . . Kinetic 235 | 2 24 2 . . 8 24 61 36 18 4 2 . 29 25 . Thermal 124 | . 6 96 . . . . . . . . . . . 22 . Explosive 9 | . . 2 . . . . . . 2 . . . 4 1 . Electromagnetic 12 | . . 8 . . . . . . . . . . . 4 . Robot Hit Streak 12 | 1 6 6 . . 5 8 12 5 4 5 6 . 7 6 . Robot Miss Streak 4 | . 4 4 . . 3 2 3 2 1 . . . 4 2 . Penetration Max 1 | . . . . . . . . . . . . . . 1 . Secondary Targets 1 | . 1 . . . . . . . . . . . . . . Max Gunslinging Chain 1 | . 1 . . . . . . . . . . . . . . Shots Hit Robots 233 | 1 15 55 . . 5 18 36 23 12 4 1 . 12 51 . Core Hits 137 | 1 10 33 . . 3 7 26 6 8 2 1 . 19 21 . Critical Kills . | . . . . . . . . . . . . . . . . Critical Parts Destroyed 1 | . . 1 . . . . . . . . . . . . . Critical Strikes 15 | . . 1 . . . . 2 2 . . . . 1 9 . Burn 3 | . . . . . . . . . . . . . . 3 . Blast 9 | . . . . . . . 2 2 . . . . 1 4 . Smash 1 | . . 1 . . . . . . . . . . . . . Impale 2 | . . . . . . . . . . . . . . 2 . Melee Attacks 21 | . . 2 . . . . . . . . . . 1 18 . Impact 2 | . . 2 . . . . . . . . . . . . . Slashing 3 | . . . . . . . . . . . . . 1 2 . Piercing 16 | . . . . . . . . . . . . . . 16 . Sneak Attacks 2 | . . 1 . . . . . . . . . . . 1 . Combat Hostiles . | . . . . . . . . . . . . . . . . Follow-up Attacks . | . . . . . . . . . . . . . . . . Damage Inflicted 7788 | 15 218 1391 . . 52 314 989 682 665 103 23 . 968 2356 12 Guns 1309 | 15 200 228 . . 52 290 200 . . . . . . 324 . Cannons 3789 | . 18 756 . . . . 789 682 291 103 23 . 349 778 . Explosions 1924 | . . 315 . . . . . . 374 . . . 619 616 . Melee 730 | . . 92 . . . . . . . . . . . 638 . Ramming 36 | . . . . . . 24 . . . . . . . . 12 Kinetic 3711 | 15 200 13 . . 52 290 989 682 291 103 23 . 349 704 . Thermal 1252 | . 18 910 . . . . . . . . . . . 324 . Explosive 1900 | . . 291 . . . . . . 374 . . . 619 616 . Electromagnetic 159 | . . 85 . . . . . . . . . . . 74 . Impact 92 | . . 92 . . . . . . . . . . . . . Slashing 120 | . . . . . . . . . . . . . . 120 . Piercing 518 | . . . . . . . . . . . . . . 518 . Highest Corruption 40 | . . . . . . . . 1 . . . . 5 32 40 Average Corruption 14 | . . . . . . . . 1 . . . . 4 12 37 Corruption Purged . | . . . . . . . . . . . . . . . . Corruption Blocked 12 | . . . . . . . . . . . . . . 12 . Effects 42 | . . . . . . . . 7 . . . . 3 12 20 Message Errors 6 | . . . . . . . . 2 . . . . . 2 2 Matter Fused 15 | . . . . . . . . 1 . . . . . 4 10 Heat Flow Errors 4 | . . . . . . . . . . . . . . 1 3 Energy Discharges 2 | . . . . . . . . . . . . . . 1 1 Parts Rejected 1 | . . . . . . . . . . . . . . . 1 Data Loss (minor) 5 | . . . . . . . . 2 . . . . . 1 2 Data Loss (major) 2 | . . . . . . . . . . . . . 1 . 1 Misfires 2 | . . . . . . . . 2 . . . . . . . Alerts 2 | . . . . . . . . . . . . . 2 . . Misdirections 1 | . . . . . . . . . . . . . . 1 . Weapon Failures 2 | . . . . . . . . . . . . . . 2 . Overload Shots . | . . . . . . . . . . . . . . . . Overflow Damage 412 | . . 97 . . . . . 40 28 . . . 51 196 . Projectiles 90 | . . 2 . . . . . 40 . . . . 33 15 . Explosions 122 | . . 13 . . . . . . 28 . . . 18 63 . Melee 200 | . . 82 . . . . . . . . . . . 118 . Knockbacks 13 | . . 1 . . . 1 2 . 3 . . . . 6 . Impact 2 | . . 1 . . . 1 . . . . . . . . . Kinetic 11 | . . . . . . . 2 . 3 . . . . 6 . Secondary . | . . . . . . . . . . . . . . . . Self-Inflicted Damage 255 | . . 77 . . . . . . 89 . . . 41 48 . Shots 7 | . . 2 . . . . . . 2 . . . 1 2 . Rammed . | . . . . . . . . . . . . . . . . Targets Rammed 2 | . . . . . . 1 . . . . . . . . 1 Kicked 2 | . . . . . . 1 . . . . . . . . 1 Crushed . | . . . . . . . . . . . . . . . . Highest Temperature 494 | . 72 494 . . . 72 84 78 78 24 12 . . 193 210 Average Temperature 80 | . 41 135 . . . 45 20 23 26 13 8 . . 38 118 Received Heat Transfer 1028 | . 36 219 . . . 63 78 60 117 9 18 . 9 419 . Effects 4 | . . 4 . . . . . . . . . . . . . Energy Bleed 1 | . . 1 . . . . . . . . . . . . . Interference 1 | . . 1 . . . . . . . . . . . . . Short Circuit 2 | . . 2 . . . . . . . . . . . . . Siege Activations . | . . . . . . . . . . . . . . . . Martial Activations . | . . . . . . . . . . . . . . . . Shielding Activations . | . . . . . . . . . . . . . . . . Robots Disrupted . | . . . . . . . . . . . . . . . . Combat Hostiles . | . . . . . . . . . . . . . . . . Robots Corrupted 2 | . . 2 . . . . . . . . . . . . . Combat Hostiles 1 | . . 1 . . . . . . . . . . . . . Parts Fried 1 | . . 1 . . . . . . . . . . . . . Impact Corruptions 3 | . . 3 . . . . . . . . . . . . . Robots Melted . | . . . . . . . . . . . . . . . . Combat Hostiles . | . . . . . . . . . . . . . . . . Parts Melted 4 | . . 3 . . . . . . . . . . . 1 . Heat Transferred 2789 | . 37 1778 . . . . . . . . . . . 974 . Parts Sabotaged . | . . . . . . . . . . . . . . . . Parts Stolen . | . . . . . . . . . . . . . . . . Parts Stripped . | . . . . . . . . . . . . . . . . Power Chain Reactions 1 | . . 1 . . . . . . . . . . . . . Alert | -11 -10 -9 -9 -9 -8 -8 -7 -6 -5 -5 -5 -5 -4 -4 -4 ------- Run | Yrd Mat Mat Min Exi Min Mat Fac Fac Fac Upp Upp Zhi Pro Fac Ext Maximum Alert Level 3 | . . 1 . . . . . . . . . . . 3 . Low Security (%) 86 | 100 100 83 100 . 100 100 100 100 100 . . . . . 100 Level 1 2 | . . 16 . . . . . . . . . . . 1 . Level 2 9 | . . . . . . . . . . . . . . 89 . Level 3 . | . . . . . . . . . . . . . . 8 . Level 4 . | . . . . . . . . . . . . . . . . Level 5 . | . . . . . . . . . . . . . . . . High Security . | . . . . . . . . . . . . . . . . Max Security . | . . . . . . . . . . . . . . . . Peak Influence 710 | 5 90 254 88 . 30 92 61 46 140 . . . . 710 199 Initial 702 | . . . 88 . . . . . . . . . . 702 193 Average 99 | . 24 114 88 . 2 34 11 6 91 . . . . 585 83 Influence Increases 2872 | 5 162 613 . . 30 138 262 150 195 20 20 . 255 1016 6 Destroy 0b10 Robot/C 1360 | . 120 420 . . 20 60 120 80 120 20 20 . 200 180 . Destroy 0b10 Robot/NC 100 | 5 10 25 . . . 5 40 5 . . . . 10 . . Destroy Leader 344 | . 22 122 . . 10 22 56 42 10 . . . 30 30 . Successful Hack 91 | . 9 15 . . . 6 5 . 9 . . . . 41 6 Disable Machine 45 | . . . . . . . 15 . . . . . . 30 . Destroy Structure 182 | . 1 16 . . . . 11 8 56 . . . . 90 . Advance Influence 600 | . . . . . . . . . . . . . . 600 . Partial Spotted 15 | . . . . . . . 15 . . . . . . . . Lose Combat Pursuer 135 | . . 15 . . . 45 . 15 . . . . 15 45 . Influence Decreases 2872 | 5 162 385 140 88 30 136 264 150 140 75 20 . 92 783 402 Entered New Map 515 | . . . 140 88 . . 2 . . 21 . . . 61 203 Time Decay 1867 | 5 162 365 . . 30 136 262 140 130 54 20 . 92 302 169 Search Patrol Dispatched 100 | . . . . . . . . . . . . . . 100 . Lost Part 360 | . . 20 . . . . . . 10 . . . . 320 10 Lost Ally 30 | . . . . . . . . 10 . . . . . . 20 Squads Dispatched 17 | . 1 4 . . . . 3 3 1 . . . . 3 2 Investigation 3 | . 1 1 . . . . . . 1 . . . . . . Extermination 5 | . . . . . . . 2 2 . . . . . 1 . Reinforcement 8 | . . 3 . . . . 1 1 . . . . . 1 2 Assault . | . . . . . . . . . . . . . . . . Garrison 1 | . . . . . . . . . . . . . . 1 . Intercept . | . . . . . . . . . . . . . . . . Searches Triggered 1 | . . . . . . . . . . . . . . 1 . Construction Impeded 1 | . . . . . . . . 1 . . . . . . . Haulers Reinforced 1 | . . . . . . . . . . . . . . 1 . Active Scanning Responses . | . . . . . . . . . . . . . . . . Cargo Convoy Interrupts . | . . . . . . . . . . . . . . . . Stealth | -11 -10 -9 -9 -9 -8 -8 -7 -6 -5 -5 -5 -5 -4 -4 -4 --------- Run | Yrd Mat Mat Min Exi Min Mat Fac Fac Fac Upp Upp Zhi Pro Fac Ext Distress Signals 6 | . 1 1 . . . . . 2 . . . . 1 1 . Communications Jammed . | . . . . . . . . . . . . . . . . Distress Signals . | . . . . . . . . . . . . . . . . Times Spotted 125 | . 9 30 . . 1 8 14 10 6 6 1 . 15 23 2 Peak Tracking Total 10 | . 4 6 . . 1 5 3 4 5 5 1 . 6 10 2 Tactical Retreats 6 | . . 1 . . . 1 . 1 . . . . 1 2 . Traps | -11 -10 -9 -9 -9 -8 -8 -7 -6 -5 -5 -5 -5 -4 -4 -4 ------- Run | Yrd Mat Mat Min Exi Min Mat Fac Fac Fac Upp Upp Zhi Pro Fac Ext Traps Triggered 4 | . 1 . . . . . . 1 . . . . . 1 1 Indirectly . | . . . . . . . . . . . . . . . . Trap Hack Attempts . | . . . . . . . . . . . . . . . . Triggered . | . . . . . . . . . . . . . . . . Disarmed . | . . . . . . . . . . . . . . . . Reprogrammed . | . . . . . . . . . . . . . . . . Reused . | . . . . . . . . . . . . . . . . Traps Extracted . | . . . . . . . . . . . . . . . . Installed . | . . . . . . . . . . . . . . . . Triggered . | . . . . . . . . . . . . . . . . Machines | -11 -10 -9 -9 -9 -8 -8 -7 -6 -5 -5 -5 -5 -4 -4 -4 ---------- Run | Yrd Mat Mat Min Exi Min Mat Fac Fac Fac Upp Upp Zhi Pro Fac Ext Machines Disabled 3 | . . . . . . . 1 . . . . . . 2 . Max in Single Turn 1 | . . . . . . . 1 . . . . . . 1 . Garrison Access 1 | . . . . . . 1 . . . . . . . . . Machines Repaired . | . . . . . . . . . . . . . . . . Machines Dismantled . | . . . . . . . . . . . . . . . . Machines Sabotaged . | . . . . . . . . . . . . . . . . Overloaded Fab Kills . | . . . . . . . . . . . . . . . . Hacking | -11 -10 -9 -9 -9 -8 -8 -7 -6 -5 -5 -5 -5 -4 -4 -4 --------- Run | Yrd Mat Mat Min Exi Min Mat Fac Fac Fac Upp Upp Zhi Pro Fac Ext Machines Accessed 30 | . 4 6 . . . 3 4 1 2 . . 6 . 2 2 Terminals 17 | . 4 5 . . . 2 2 . 1 . . . . 1 2 Fabricators 3 | . . . . . . . 2 1 . . . . . . . Repair Stations 2 | . . . . . . . . . 1 . . . . 1 . Recycling Units . | . . . . . . . . . . . . . . . . Scanalyzers 1 | . . 1 . . . . . . . . . . . . . Garrison Access 1 | . . . . . . 1 . . . . . . . . . Total Hacks 71 | . 9 10 . . . 5 11 1 6 . . 19 . 6 4 Successful 46 | . 5 4 . . . 3 3 1 5 . . 19 . 4 2 Failed 24 | . 4 5 . . . 2 8 . 1 . . . . 2 2 Catastrophic 2 | . . 1 . . . . . . . . . . . 1 . Database Lockouts 1 | . . 1 . . . . . . . . . . . . . Manual 11 | . 3 6 . . . 2 . . . . . . . . . Terminals 32 | . 9 9 . . . 3 3 . 2 . . . . 2 4 Fabricators 9 | . . . . . . . 8 1 . . . . . . . Repair Stations 8 | . . . . . . . . . 4 . . . . 4 . Recycling Units . | . . . . . . . . . . . . . . . . Scanalyzers 1 | . . 1 . . . . . . . . . . . . . Garrison Access 2 | . . . . . . 2 . . . . . . . . . Terminal Hacks 36 | . 5 4 . . . 2 1 . 2 . . 19 . 1 2 Record 7 | . . . . . . . . . . . . 7 . . . Part Schematic 4 | . . . . . . . . . . . . 4 . . . Robot Analysis 7 | . . 2 . . . 1 . . . . . 4 . . . Prototype ID Bank 8 | . 2 2 . . . . . . . . . 4 . . . Open Door 3 | . . . . . . . . . . . . . . 1 2 Locate Traps 1 | . 1 . . . . . . . . . . . . . . Dispatch Records 2 | . 1 . . . . 1 . . . . . . . . . Investigation Status 1 | . . . . . . . . . 1 . . . . . . Hauler Manifests 2 | . 1 . . . . . 1 . . . . . . . . Zone Layout 1 | . . . . . . . . . 1 . . . . . . Fabricator Hacks 3 | . . . . . . . 2 1 . . . . . . . Network Status 1 | . . . . . . . . 1 . . . . . . . Build 2 | . . . . . . . 2 . . . . . . . . Repair Station Hacks 6 | . . . . . . . . . 3 . . . . 3 . Scan Component 4 | . . . . . . . . . 2 . . . . 2 . Repair 2 | . . . . . . . . . 1 . . . . 1 . Recycling Unit Hacks . | . . . . . . . . . . . . . . . . Scanalyzer . | . . . . . . . . . . . . . . . . Garrison Access Hacks 1 | . . . . . . 1 . . . . . . . . . Seal Access 1 | . . . . . . 1 . . . . . . . . . Unauthorized Hacks . | . . . . . . . . . . . . . . . . Terminals . | . . . . . . . . . . . . . . . . Fabricators . | . . . . . . . . . . . . . . . . Repair Stations . | . . . . . . . . . . . . . . . . Recycling Units . | . . . . . . . . . . . . . . . . Scanalyzers . | . . . . . . . . . . . . . . . . Garrison Access . | . . . . . . . . . . . . . . . . Data Cores Recovered 1 | . . . . . . . 1 . . . . . . . . Used 1 | . . . . . . . 1 . . . . . . . . Hacking Detections 18 | . 4 5 . . . 2 3 . 2 . . . . 1 1 Full Trace Events 2 | . . 1 . . . . . . 1 . . . . . . Feedback Events . | . . . . . . . . . . . . . . . . Feedback Blocked . | . . . . . . . . . . . . . . . . Robot Schematics Acquired . | . . . . . . . . . . . . . . . . Robots Built 1 | . . . . . . . 1 . . . . . . . . Authchips . | . . . . . . . . . . . . . . . . Time 81 | . . . . . . . 81 . . . . . . . . Total Robot Build Rating 1 | . . . . . . . 1 . . . . . . . . Part Schematics Acquired 4 | . . . . . . . . . . . . 4 . . . Parts Built 2 | . . . . . . . 2 . . . . . . . . Authchips . | . . . . . . . . . . . . . . . . Time 42 | . . . . . . . 42 . . . . . . . . Total Part Build Rating 8 | . . . . . . . 8 . . . . . . . . Part Studies Acquired . | . . . . . . . . . . . . . . . . Parts Repaired 2 | . . . . . . . . . 1 . . . . 1 . Time 69 | . . . . . . . . . 44 . . . . 25 . Parts Recycled . | . . . . . . . . . . . . . . . . Recycled Matter . | . . . . . . . . . . . . . . . . Retrieved Matter . | . . . . . . . . . . . . . . . . Retrieved Components . | . . . . . . . . . . . . . . . . Parts Scanalyzed . | . . . . . . . . . . . . . . . . Part Schematics Acquired . | . . . . . . . . . . . . . . . . Parts Damaged . | . . . . . . . . . . . . . . . . Bothacking | -11 -10 -9 -9 -9 -8 -8 -7 -6 -5 -5 -5 -5 -4 -4 -4 ------------ Run | Yrd Mat Mat Min Exi Min Mat Fac Fac Fac Upp Upp Zhi Pro Fac Ext Used RIF Installer . | . . . . . . . . . . . . . . . . Robots Hacked . | . . . . . . . . . . . . . . . . Non-combat . | . . . . . . . . . . . . . . . . Combat . | . . . . . . . . . . . . . . . . Robot Hacks Applied . | . . . . . . . . . . . . . . . . Relay Couplers Released . | . . . . . . . . . . . . . . . . Fabnet Peak Effective % . | . . . . . . . . . . . . . . . . Robots Rewired . | . . . . . . . . . . . . . . . . Allies Hacked . | . . . . . . . . . . . . . . . . Hacks Repelled . | . . . . . . . . . . . . . . . . Allies | -11 -10 -9 -9 -9 -8 -8 -7 -6 -5 -5 -5 -5 -4 -4 -4 -------- Run | Yrd Mat Mat Min Exi Min Mat Fac Fac Fac Upp Upp Zhi Pro Fac Ext Total Allies 3 | . . . . . . . 1 . . . . . . . 2 Largest Group 1 | . . . . . . . 1 1 . . . . . . 1 Highest-Rated Group 46 | . . . . . . . 10 10 . . . . . . 46 Highest-Rated Ally 46 | . . . . . . . 10 10 . . . . . . 46 Total Orders 1 | . . . . . . . . . . . . . . . 1 EXPLORE 1 | . . . . . . . . . . . . . . . 1 Ally Attacks . | . . . . . . . . . . . . . . . . Total Damage . | . . . . . . . . . . . . . . . . Kills . | . . . . . . . . . . . . . . . . Allies Corrupted . | . . . . . . . . . . . . . . . . Allies Melted . | . . . . . . . . . . . . . . . . Intel | -11 -10 -9 -9 -9 -8 -8 -7 -6 -5 -5 -5 -5 -4 -4 -4 ------- Run | Yrd Mat Mat Min Exi Min Mat Fac Fac Fac Upp Upp Zhi Pro Fac Ext Active Infowar (turns) 6452 | 64 561 993 15 210 312 361 581 870 293 330 264 233 666 360 339 Sensors 2945 | . . . . . . . . 485 293 330 264 233 666 335 339 Terrain 3462 | . . 464 . . . . . 870 293 330 264 231 666 344 . Seismic 3097 | 64 561 993 15 210 312 361 581 . . . . . . . . Robot Analysis Total 7 | . . 2 . . . 1 . . . . . 4 . . . Derelict Logs Recovered 1 | . . . . . . . . . . . . . 1 . . Drone Launches 3 | . . . . . . . . . . . . . . . 3 Drone Recoveries 1 | . . . . . . . . . . . . . . . 1 Exploration | -11 -10 -9 -9 -9 -8 -8 -7 -6 -5 -5 -5 -5 -4 -4 -4 ------------- Run | Yrd Mat Mat Min Exi Min Mat Fac Fac Fac Upp Upp Zhi Pro Fac Ext Turns Passed 7928 | 120 561 993 15 210 312 361 1627 870 293 330 264 233 666 672 401 Spaces Moved 5184 | 71 316 493 10 132 195 244 1123 561 167 271 218 173 489 410 311 Core 15 | 8 . . . . . . . . . . . . . 7 . Treads 1068 | 63 316 384 10 132 163 . . . . . . . . . . Legs 3963 | . . 109 . . 32 244 1123 561 167 271 218 173 489 329 247 Wheels . | . . . . . . . . . . . . . . . . Hover . | . . . . . . . . . . . . . . . . Flight 138 | . . . . . . . . . . . . . . 74 64 Fastest Speed 37 | 50 160 120 160 160 120 120 120 120 120 120 120 120 120 37 50 Average Speed 129 | 147 160 153 160 160 153 120 122 139 120 120 120 120 120 105 107 Slowest Speed 190 | 160 160 190 160 160 160 120 190 190 120 120 120 120 120 190 120 Overloaded Moves . | . . . . . . . . . . . . . . . . Propulsion Burnouts . | . . . . . . . . . . . . . . . . Robots Hopped 1 | . . . . . . . . . . . . . . 1 . Potential Cave-ins 3 | . . . . . . . . . . . . . 3 . . Cave-ins Triggered . | . . . . . . . . . . . . . . . . Teleports 1 | . . . . . . . . . . . . . . 1 . Exploration Rate (%) 34 | 3 37 51 5 50 51 26 30 14 7 42 38 62 72 14 50 Regions Visited 15 Branch Regions 8 Pre-discovered Areas 3 | . . . . . . . . . . . . 3 . . . Known Exits Taken 6 | . . . . . . . . 1 1 1 1 1 1 . . Unknown Exits Taken 9 | 1 1 1 1 1 1 1 1 . . . . . . 1 . Scrap Searched 5 | . . . . . . . . . . 1 1 . 3 . . Spaces Dug 8 | . . . . . . . . 2 2 . . . 4 . . Terrain Destroyed 170 | . . 13 . . . . 10 8 35 . . . 52 52 . Melee 1 | . . . . . . . . . . . . . 1 . . Projectile 37 | . . . . . . . 10 8 4 . . . 10 5 . AOE 132 | . . 13 . . . . . . 31 . . . 41 47 . Terrain Rammed . | . . . . . . . . . . . . . . . . Walls Destroyed . | . . . . . . . . . . . . . . . . Machines Disabled . | . . . . . . . . . . . . . . . . Actions | -11 -10 -9 -9 -9 -8 -8 -7 -6 -5 -5 -5 -5 -4 -4 -4 --------- Run | Yrd Mat Mat Min Exi Min Mat Fac Fac Fac Upp Upp Zhi Pro Fac Ext Total 5988 | 81 341 614 9 131 199 291 1321 609 236 272 218 199 532 560 375 Wait 296 | . 4 7 . . . 5 104 20 44 . . . 7 51 54 Move 5167 | 70 315 492 9 131 194 243 1122 560 166 270 217 172 488 407 311 Hop 1 | . . . . . . . . . . . . . . 1 . Pick Up 57 | 3 4 11 . . . 6 20 1 2 . . 4 1 5 . Fast Attach 38 | 7 . 5 . . 1 1 3 . 1 . . 1 1 11 7 Attach 34 | . . 2 . . . 3 5 2 3 . . 1 1 15 2 Detach 10 | . . 1 . . . 3 2 . . . . 1 . 3 . Swap 65 | . 2 21 . . . 6 13 7 5 . . 6 2 3 . Drop 59 | . 1 17 . . . 11 15 2 . . . 5 2 6 . Fire 229 | 1 15 56 . . 4 12 37 17 15 2 1 . 29 40 . Melee 21 | . . 2 . . . . . . . . . . 1 18 . Ram . | . . . . . . . . . . . . . . . . Kick 2 | . . . . . . 1 . . . . . . . . 1 Crush . | . . . . . . . . . . . . . . . . Escape Stasis . | . . . . . . . . . . . . . . . . Rewire 9 | . . . . . . . . . . . . 9 . . . Trap . | . . . . . . . . . . . . . . . . Miscellaneous . | . . . . . . . . . . . . . . . . Route ------- -11/Scrapyard -10/Materials -9/Materials -9/Mines -9/Exiles -8/Mines -8/Materials -7/Factory -6/Factory (discovered 2 exits: *Fac / *Low) -5/Factory (discovered 2 exits: *Fac / *Upp) -5/Upper Caves -5/Upper Caves -5/Zhirov -4/Proximity Caves -4/Factory -4/Extension History --------- Turn | Location | Event 9 | -11/Scrapyard | Discovered new exit (range 14) 121 | -11/Scrapyard | Entered Materials 306 | -10/Materials | Build established: Mutant 335 | -10/Materials | Discovered new exit (range 16) 682 | -10/Materials | Entered another Materials area 682 | -9/Materials | Evolved 2 slots: Propulsion x1, Utility x1 1473 | -9/Materials | Central database locked down 1575 | -9/Materials | Discovered new exit (range 13) 1675 | -9/Materials | Entered Mines 1682 | -9/Mines | Deemed a non-threat by the Exiles lab entrance 1683 | -9/Mines | Discovered new exit (range 5) 1690 | -9/Mines | Entered Exiles 1732 | -9/Exiles | Met 8R-AWN 1759 | -9/Exiles | Met EX-HEX 1831 | -9/Exiles | Met EX-DEC 1887 | -9/Exiles | Discovered new exit (range 10) 1900 | -9/Exiles | Entered Mines 2196 | -8/Mines | Discovered new exit (range 13) 2212 | -8/Mines | Entered Materials 2212 | -8/Materials | Evolved 2 slots: Utility x2 2538 | -8/Materials | Discovered new exit (range 16) 2573 | -8/Materials | Entered Factory 2573 | -7/Factory | Evolved 2 slots: Propulsion x1, Utility x1 3856 | -7/Factory | Fabricated Imp. Carbon-fiber Leg? 4085 | -7/Factory | Fabricated A-02 Transporter (x1) 4161 | -7/Factory | Discovered new exit (range 7) 4200 | -7/Factory | Entered another Factory area 4200 | -6/Factory | Accompanied by 1 ally 4200 | -6/Factory | Evolved 2 slots: Utility x2 4884 | -6/Factory | Build established: Skirmisher 4911 | -6/Factory | Discovered new exit (range 14) 4960 | -6/Factory | Discovered new exit (range 16) 4971 | -6/Factory | Identified exit to Factory 5035 | -6/Factory | Identified exit to Lower Caves 5070 | -6/Factory | Entered another Factory area 5070 | -5/Factory | Evolved 2 slots: Propulsion x1, Utility x1 5093 | -5/Factory | Discovered new exit (range 20) 5164 | -5/Factory | Identified exit to Factory 5290 | -5/Factory | Discovered new exit (range 14) 5329 | -5/Factory | Repaired Adv. Assault Cannon 5361 | -5/Factory | Identified exit to Upper Caves 5363 | -5/Factory | Entered Upper Caves 5515 | -5/Upper Caves | Attracted the attention of an 0b10 checkpoint 5671 | -5/Upper Caves | Attracted the attention of an 0b10 outpost 5684 | -5/Upper Caves | Discovered new exit (range 8) 5691 | -5/Upper Caves | Identified exit to Upper Caves 5693 | -5/Upper Caves | Entered another Upper Caves area 5918 | -5/Upper Caves | Discovered new exit (range 12) 5919 | -5/Upper Caves | Encountered a Warlord checkpoint 5956 | -5/Upper Caves | Identified exit to Zhirov 5957 | -5/Upper Caves | Entered Zhirov 5957 | -5/Zhirov | Discovered new exit (range 3) 5979 | -5/Zhirov | Met Zhirov 6002 | -5/Zhirov | Learned location of Quarantine (-3) 6002 | -5/Zhirov | Learned location of Testing (-2) 6002 | -5/Zhirov | Learned location of Command (-1) 6023 | -5/Zhirov | Zhirov requested help retrieving the SGEMP Prototype 6045 | -5/Zhirov | Found Alien Artifact 6059 | -5/Zhirov | Found Alien Artifact 6059 | -5/Zhirov | Identified Integrated Dissipator 6059 | -5/Zhirov | Installed Integrated Dissipator, increased core heat dissipation (+20) 6189 | -5/Zhirov | Identified exit to Proximity Caves 6190 | -5/Zhirov | Entered Proximity Caves 6193 | -4/Proximity Caves | Spotter reported a threat 6193 | -4/Proximity Caves | Spotter reported a threat 6370 | -4/Proximity Caves | Spotter reported a threat 6434 | -4/Proximity Caves | Learned Research garrison access intel 6536 | -4/Proximity Caves | Spotted B-86 Titan 6672 | -4/Proximity Caves | Spotter reported a threat 6813 | -4/Proximity Caves | Discovered exit to Factory (range 20) 6856 | -4/Proximity Caves | Entered Factory 6856 | -4/Factory | Evolved 2 slots: Utility x1, Weapon x1 6928 | -4/Factory | Repaired Adv. Sensor Array 7106 | -4/Factory | Search patrols dispatched 7277 | -4/Factory | Core integrity fell below 50% 7303 | -4/Factory | Lost 14 parts (2p2n6u4w) 7420 | -4/Factory | System corruption reached 10% 7429 | -4/Factory | Garrison activated, responded to threat 7442 | -4/Factory | System corruption reached 30% 7499 | -4/Factory | Lost 13 parts (4n6u3w) 7500 | -4/Factory | Core integrity fell below 20% 7509 | -4/Factory | Build established: Mutant 7512 | -4/Factory | Identified Transdimensional Reconstructor 7512 | -4/Factory | Warped through subspace 7526 | -4/Factory | Discovered new exit (range 6) 7528 | -4/Factory | Entered Extension 7542 | -4/Extension | Lost 4 parts (2n2u) 7555 | -4/Extension | Rescued a captive Derelict 7565 | -4/Extension | Rescued a captive Derelict 7929 | -4/Extension | Destroyed by H-77 Assassin with Coil Gun Last Messages --------------- 07883_ System corrupted: Matter fused (-10). 07899_ Slug penetrates Wall. 07900_ System corrupted: Component data lost. 07905_ Slug penetrates Wall. 07908_ Slug penetrates 0X-480(b). 07909_ Slug penetrates Terminal. 07909_ Slug penetrates 0X-480(b). 07915_ System corrupted: Flexi-carbon Leg rejected. 07915_ Acquired Flexi-carbon Leg. 07916_ Slug penetrates 0X-480(b). 07920_ 0X-480(b) destroyed. 07920_ Slug penetrates Wall. 07921_ Slug penetrates Terminal. 07921_ Penetrated by Slug. 07926_ Slug penetrates Terminal. 07927_ Penetrated by Slug. 07927_ Slug penetrates Terminal. 07928_ Acquired Imp. Shield Generator. 07929_ Penetrated by Slug. Map ----- +----------------------------------------------------+ | | | | | | | | | | | | | | | | | | | | | | | | | | | | | | | ?????????????????????????????????????????????????? | | ?????????????????????????????????????????????????? | | ?????????????????????????????????????????????????# | | ????????????????????????????????################## | | #############################???# + | | #???# # | | %/ ##### # | | """""h + | | ############### ^""T h ##################### | | / #??????# #???????????????????# | | # #??????# @ #???????????????????# | | # #??????# ###????????????????## | | + #??????# # #????????????????# | | ### #??????# +%"???????????????#T | | #?# #??????# # #???????????????## | | # #?########??????# ###????????????????# | | T #???????????????##""T""#####?????????????????# ! | | # #????????????????#"""""#?????????????????????##! | | # #????????????????#######??????????????????????## | | ###??????????????????????????????????????????????? | | ?????????????????????????????????????????????????? | | ?????????????????????????????????????????????????? | | ?????????????????????????????????????????????????? | | ?????????????????????????????????????????????????? | | ?????????????????????????????????????????????????? | | ?????????????????????????????????????????????????? | | ?????????????????????????????????????????????????? | | ?????????????????????????????????????????????????? | | ?????????????????????????????????????????????????? | | ?????????????????????????????????????????????????? | | ?????????????????????????????????????????????????? | | ?????????????????????????????????????????????????? | | ?????????????????????????????????????????????????? | | ?????????????????????????????????????????????????? | | ?????????????????????????????????????????????????? | +----------------------------------------------------+ Best States ------------- Heat Dissipation 77 Energy Generation 19 Energy Capacity 315 Matter Stores 342 Matter Capacity 450 Sight Range 16 Robot Scan Range 16 Terrain Scan Range 20 Terrain Scan Density 210 Base Temperature (-) 100 Corruption Containment 12 Corruption Block 15 Armor Coverage 750 Resistance: EX 25 Propulsion Shielding 66 Evasion (%) 62 Targeting Accuracy 8 Core Analysis 6 Recoil Reduction 3 Matter Filtering 30 Kinecelleration 30 Offensive Hacking 14 Item Schematics ----------------- Assault Drone Bay | -5/Zhirov | Free Exp. Heat Sink | -5/Zhirov | Free Exp. Optical Array | -5/Zhirov | Free Imp. Arc Thrower | -5/Zhirov | Free Robot Schematics ------------------ None Fabricated ------------ Imp. Carbon-fiber Leg | x2 | -7/Factory | Preloaded A-02 Transporter | x1 | -7/Factory | Preloaded Repaired ---------- Adv. Assault Cannon | 15% | -5/Factory Adv. Sensor Array | 4% | -4/Factory Studied --------- None Alien Tech Used ----------------- Integrated Dissipator Transdimensional Reconstructor Achievements -------------- None Challenges ------------ None Game ------ Seed DimensionalThrusterFrame Manual? 0 Play Time 01:18:25 Cumulative 64.1 hours Start 2026.06.26 @ 11:07:52 End 2026.06.26 @ 14:24:25 Sessions 3 Manual Loads 0 Difficulty Rogue Special Mode None Game No. 74 Rogue 58 Adventurer 16 Explorer 0 Win Type - Total 1 Types 1/0/0/0/0/0/0/0/0/0 Lore% 50 Gallery% 48 Achievement% 34 Wizard Run 0 Options --------- Layout 1 ASCII 0 Keyboard 1 Movement Vi Keybinds 0 Fullscreen 1 Font 24/Tamsyn Map View 50x35 Zoom Use 0% Tactical HUD 1 Map Filters NONE Filters NONE Steam 1 RUN: fba8b3af-e506-4ee5-a9b0-9448680fdb6b